Cogmind - Beta 13 @@@ ROGUE MODE // 2024.04.04 @ 11:06:10 Player: Redman9012 Result: Destroyed by G-47 Trooper with Particle Gun Performance ------------- Evolutions (2) 1000 Regions Visited (3) 600 Robots Destroyed (117) 585 Value Destroyed (1742) 1742 Prototype IDs (0) 0 Alien Tech Used (0) 0 Bonus (0) 0 TOTAL SCORE: 3927 Bonus ------- None Cogmind --------- Core Integrity 0/550 Matter 300/300 Energy 100/100 System Corruption 0% Temperature Cool (9) Movement Core (1350) Ox26 Location -8/Materials Parts ------- > --- POWER (1) -------- (None) > --- PROPULSION (3) --- (None) > --- UTILITY (5) ------ Huge Storage Unit Targeting Computer > --- WEAPON (2) ------- (None) > --- INVENTORY (25) --- Light Treads Light Treads Light Treads Improved Treads Structural Scanner Improved Sensor Array Improved Signal Interpreter Improved Terrain Scanner Terrain Scan Processor Transport Network Coupler ECM Suite EM Pulse Gun EM Pulse Gun Improved EM Shotgun Improved EM Shotgun Improved EM Shotgun Improved EM Shotgun Improved Assault Rifle Datajack Peak State ------------ > --- POWER ------------ Improved Ion Engine > --- PROPULSION ------- Light Treads Light Treads Light Treads > --- UTILITY ---------- Huge Storage Unit Weight Redist. System Targeting Computer Hardened Light Armor Plating Hacking Suite > --- WEAPON ----------- Beam Rifle Heavy Assault Rifle > --- INVENTORY -------- Ion Engine Light Treads Light Treads Light Treads Improved Treads Structural Scanner Sensor Array Improved Sensor Array Improved Signal Interpreter Improved Terrain Scanner Terrain Scan Processor Transport Network Coupler ECM Suite EM Pulse Gun EM Pulse Gun EM Pulse Gun Improved EM Shotgun Improved EM Shotgun Improved EM Shotgun Improved EM Shotgun Beam Rifle Autogun Improved Assault Rifle Datajack [Rating: 22] Favorites ----------- Power Ion Engine Engine Ion Engine Propulsion Light Treads Treads Light Treads Utility Targeting Computer Device Sensor Array Storage Large Storage Unit Processor Targeting Computer Hackware Hacking Suite Protection Light Armor Plating Weapon EM Pulse Gun Energy Gun EM Pulse Gun Ballistic Gun Assault Rifle Special Melee Weapon Datajack Build | -11 -10 -9 -8 ------- Run | Yrd Mat Mat Mat Slots Evolved 4 | . . 2 2 Power . | . . . . Propulsion 1 | . . 1 . Utility 3 | . . 1 2 Weapon . | . . . . Parts Attached 51 | 6 15 18 12 Power 6 | 1 1 2 2 Engine 6 | 1 1 2 2 Core . | . . . . Reactor . | . . . . Propulsion 11 | 2 3 5 1 Treads 11 | 2 3 5 1 Leg . | . . . . Wheel . | . . . . Hover . | . . . . Flight . | . . . . Utility 14 | 1 5 4 4 Device 2 | . 1 . 1 Storage 3 | 1 1 1 . Processor 1 | . 1 . . Hackware 1 | . . . 1 Protection 7 | . 2 3 2 Artifact . | . . . . Weapon 20 | 2 6 7 5 Energy Gun 12 | 1 3 5 3 Energy Cannon . | . . . . Ballistic Gun 6 | 1 2 1 2 Ballistic Cannon . | . . . . Launcher . | . . . . Special Weapon . | . . . . Impact Weapon . | . . . . Slashing Weapon . | . . . . Piercing Weapon . | . . . . Special Melee Weapon 2 | . 1 1 . Unidentified Prototypes . | . . . . Parts Lost 28 | . 2 10 16 Power 3 | . . 1 2 Propulsion 6 | . . 2 4 Utility 8 | . 1 2 5 Weapon 11 | . 1 5 5 Highest Loss Streak 11 | . 2 4 11 To Critical Strikes . | . . . . Average Slot Usage (%) 96 | . 98 98 79 Engine 11 | . 13 10 6 Treads 28 | . 28 32 19 Device 4 | . 7 . 8 Storage 12 | . 14 11 9 Processor 5 | . 1 11 9 Protection 6 | . 3 10 8 Energy Gun 10 | . 7 14 7 Ballistic Gun 13 | . 20 7 7 Naked Turns . | . . . . Heaviest Build 98 | 14 30 94 98 Greatest Support 66 | 40 40 60 66 Greatest Overweight (x) 8 | . 1 2 8 Average Overweight (x) . | . . . 1 Largest Inventory Capacity 25 | 8 15 25 25 Average Capacity 19 | 6 14 24 25 Most Carried 25 | 5 15 25 25 Average Carried 15 | 2 12 19 22 Final Capacity 25 | 8 15 25 25 Final Carried 25 | 2 15 25 19 Class Distribution -------------------- 72% | Mutant 27% | Scavenger-Mutant Dominant Class ---------------- Mutant | -10/Materials Scavenger-Mutant | -9/Materials Scavenger-Mutant | -8/Materials Resources | -11 -10 -9 -8 ----------- Run | Yrd Mat Mat Mat Matter Collected 1644 | 221 958 302 163 Remotely . | . . . . Salvage Created 4024 | . 2061 1501 462 Parts 289 | . 175 98 16 Haulers Intercepted 4 | . 2 2 . Recyclers Shooed 14 | . 10 4 . Parts Field Recycled . | . . . . Retrieved Matter . | . . . . Parts Self-Destructed . | . . . . Prevented . | . . . . Kills | -11 -10 -9 -8 ------- Run | Yrd Mat Mat Mat Combat Hostiles Destroyed 45 | . 15 24 6 Guns 40 | . 12 22 6 AOE 4 | . 3 1 . Classes Destroyed 11 | . 9 1 1 Worker 31 | . 28 2 1 Builder 18 | . 17 1 . Tunneler 2 | . 2 . . Hauler 4 | . 2 2 . Recycler 12 | . 6 5 1 Operator 5 | . 2 3 . Watcher 8 | . 3 4 1 Swarmer 16 | . 6 10 . Grunt 21 | . 9 9 3 Duelist 1 | . . . 1 Sentry 7 | . . 5 2 Best Kill Streak 7 | . 7 5 2 Combat Bots Only 5 | . 5 4 2 Max Kills in Single Turn 3 | . 2 3 1 Gunslinging . | . . . . Exploded 2 | . 2 1 . Melee . | . . . . Uniques/NPCs Destroyed . | . . . . Combat | -11 -10 -9 -8 -------- Run | Yrd Mat Mat Mat Hostile Shots Fired 396 | . 75 184 137 Missed 107 | . 26 58 23 Damage Taken 3845 | . 536 1326 1983 Core 819 | . 85 182 552 Absorbed by Shields . | . . . . Redirected to Shielding 98 | . 50 48 . Core Remaining (%) 73 | 100 66 54 . Volleys Fired 374 | . 212 110 52 Largest 2 | . 2 2 2 Hottest 112 | . 80 80 112 Shots Fired 716 | . 422 203 91 Gun 716 | . 422 203 91 Cannon . | . . . . Launcher . | . . . . Special . | . . . . Kinetic 454 | . 365 49 40 Thermal 49 | . . 4 45 Explosive . | . . . . Electromagnetic 213 | . 57 150 6 Robot Hit Streak 11 | . 11 11 9 Robot Miss Streak 5 | . 4 5 5 Penetration Max . | . . . . Secondary Targets 7 | . 4 3 . Max Gunslinging Chain 1 | . 1 1 . Shots Hit Robots 421 | . 225 128 68 Core Hits 191 | . 108 56 27 Critical Kills . | . . . . Critical Parts Destroyed . | . . . . Critical Strikes 9 | . . 6 3 Burn 4 | . . 1 3 Corrupt 5 | . . 5 . Melee Attacks 1 | . . 1 . Impact . | . . . . Slashing . | . . . . Piercing . | . . . . Sneak Attacks . | . . . . Combat Hostiles . | . . . . Follow-up Attacks . | . . . . Damage Inflicted 5948 | . 2780 2132 1036 Guns 5483 | . 2603 1861 1019 Cannons . | . . . . Explosions 445 | . 174 271 . Melee . | . . . . Ramming 20 | . 3 . 17 Kinetic 3153 | . 2119 596 438 Thermal 1004 | . 174 315 515 Explosive . | . . . . Electromagnetic 1771 | . 484 1221 66 Impact . | . . . . Slashing . | . . . . Piercing . | . . . . Highest Corruption 1 | . . 1 . Average Corruption 1 | . . 1 . Corruption Purged . | . . . . Corruption Blocked . | . . . . Effects 7 | . . 7 . Message Errors 2 | . . 2 . Heat Flow Errors 1 | . . 1 . Data Loss (minor) 2 | . . 2 . Data Loss (major) 1 | . . 1 . Weapon Failures 1 | . . 1 . Overload Shots . | . . . . Overflow Damage 23 | . 14 9 . Projectiles . | . . . . Explosions 23 | . 14 9 . Melee . | . . . . Knockbacks . | . . . . Impact . | . . . . Kinetic . | . . . . Secondary . | . . . . Self-Inflicted Damage 31 | . 26 . 5 Shots 1 | . 1 . . Rammed 12 | . 1 . 11 Targets Rammed 13 | . 2 . 11 Kicked . | . . . . Crushed 1 | . 1 . . Highest Temperature 386 | . 66 275 386 Average Temperature 62 | . 21 44 115 Received Heat Transfer 1368 | . 147 321 900 Effects 1 | . . . 1 Energy Bleed 1 | . . . 1 Siege Activations . | . . . . Robots Corrupted 1 | . . 1 . Combat Hostiles 1 | . . 1 . Parts Fried 5 | . 1 4 . Impact Corruptions . | . . . . Robots Melted . | . . . . Combat Hostiles . | . . . . Parts Melted 2 | . . . 2 Heat Transferred 2089 | . 200 335 1554 Parts Sabotaged . | . . . . Parts Stolen . | . . . . Parts Stripped . | . . . . Power Chain Reactions 9 | . 4 5 . Alert | -11 -10 -9 -8 ------- Run | Yrd Mat Mat Mat Peak Influence 342 | . 270 342 175 Initial 67 | . . 67 42 Average 168 | . 164 210 74 Maximum Alert Level 1 | . 1 1 . Low Security (%) 58 | 100 64 36 100 Level 1 41 | . 35 63 . Level 2 . | . . . . Level 3 . | . . . . Level 4 . | . . . . Level 5 . | . . . . High Security . | . . . . Max Security . | . . . . Squads Dispatched 10 | . 4 5 1 Investigation 4 | . 2 2 . Extermination . | . . . . Reinforcement 6 | . 2 3 1 Assault . | . . . . Garrison . | . . . . Intercept . | . . . . Searches Triggered . | . . . . Construction Impeded . | . . . . Haulers Reinforced . | . . . . Active Scanning Responses . | . . . . Cargo Convoy Interrupts . | . . . . Stealth | -11 -10 -9 -8 --------- Run | Yrd Mat Mat Mat Distress Signals 3 | . 1 . 2 Communications Jammed . | . . . . Distress Signals . | . . . . Times Spotted 75 | . 18 39 18 Peak Tracking Total 5 | . 4 5 5 Tactical Retreats . | . . . . Traps | -11 -10 -9 -8 ------- Run | Yrd Mat Mat Mat Traps Triggered 4 | . 3 . 1 Indirectly . | . . . . Trap Hack Attempts . | . . . . Triggered . | . . . . Disarmed . | . . . . Reprogrammed 4 | . 4 . . Reused . | . . . . Traps Extracted . | . . . . Installed . | . . . . Triggered . | . . . . Machines | -11 -10 -9 -8 ---------- Run | Yrd Mat Mat Mat Machines Disabled 3 | . 3 . . Max in Single Turn 2 | . 2 . . Machines Repaired . | . . . . Machines Dismantled . | . . . . Machines Sabotaged . | . . . . Overloaded Fab Kills . | . . . . Hacking | -11 -10 -9 -8 --------- Run | Yrd Mat Mat Mat Machines Accessed 11 | . 6 5 . Terminals 9 | . 4 5 . Fabricators . | . . . . Repair Stations . | . . . . Recycling Units 2 | . 2 . . Scanalyzers . | . . . . Garrison Access . | . . . . Total Hacks 28 | . 12 16 . Successful 16 | . 9 7 . Failed 12 | . 3 9 . Catastrophic . | . . . . Database Lockouts . | . . . . Manual 2 | . . 2 . Terminals 26 | . 10 16 . Fabricators . | . . . . Repair Stations . | . . . . Recycling Units 2 | . 2 . . Scanalyzers . | . . . . Garrison Access . | . . . . Terminal Hacks 14 | . 7 7 . Emergency Access Points 3 | . 1 2 . Alert Level 3 | . 2 1 . Unreport Threat 1 | . . 1 . Locate Traps 1 | . 1 . . Reprogram Traps 1 | . 1 . . Maintenance Status 1 | . 1 . . Hauler Manifests 2 | . 1 1 . Zone Layout 2 | . . 2 . Fabricator Hacks . | . . . . Repair Station Hacks . | . . . . Recycling Unit Hacks 2 | . 2 . . Report Inventory 2 | . 2 . . Scanalyzer . | . . . . Garrison Access Hacks . | . . . . Unauthorized Hacks . | . . . . Terminals . | . . . . Fabricators . | . . . . Repair Stations . | . . . . Recycling Units . | . . . . Scanalyzers . | . . . . Garrison Access . | . . . . Data Cores Recovered . | . . . . Used . | . . . . Hacking Detections 7 | . 3 4 . Full Trace Events 4 | . 1 3 . Feedback Events 1 | . . 1 . Corruption 1 | . . 1 . Feedback Blocked . | . . . . Robot Schematics Acquired . | . . . . Robots Built . | . . . . Authchips . | . . . . Time . | . . . . Total Robot Build Rating . | . . . . Part Schematics Acquired . | . . . . Parts Built . | . . . . Authchips . | . . . . Time . | . . . . Total Part Build Rating . | . . . . Parts Repaired . | . . . . Time . | . . . . Parts Recycled . | . . . . Recycled Matter . | . . . . Retrieved Matter . | . . . . Retrieved Components . | . . . . Parts Scanalyzed . | . . . . Part Schematics Acquired . | . . . . Parts Damaged . | . . . . Bothacking | -11 -10 -9 -8 ------------ Run | Yrd Mat Mat Mat Used RIF Installer . | . . . . Robots Hacked 1 | . . 1 . Non-combat 1 | . . 1 . Combat . | . . . . Robot Hacks Applied 1 | . . 1 . parse_system 1 | . . 1 . Relay Couplers Released . | . . . . Fabnet Peak Effective % . | . . . . Robots Rewired . | . . . . Allies Hacked . | . . . . Hacks Repelled . | . . . . Allies | -11 -10 -9 -8 -------- Run | Yrd Mat Mat Mat Total Allies . | . . . . Largest Group . | . . . . Highest-Rated Group . | . . . . Highest-Rated Ally . | . . . . Total Orders . | . . . . Ally Attacks . | . . . . Total Damage . | . . . . Kills . | . . . . Allies Corrupted . | . . . . Allies Melted . | . . . . Intel | -11 -10 -9 -8 ------- Run | Yrd Mat Mat Mat Robot Analysis Total . | . . . . Derelict Logs Recovered . | . . . . Drone Launches . | . . . . Drone Recoveries . | . . . . Exploration | -11 -10 -9 -8 ------------- Run | Yrd Mat Mat Mat Turns Passed 4890 | 78 2482 1781 549 Spaces Moved 1878 | 48 1123 598 109 Core 13 | 11 . . 2 Treads 1865 | 37 1123 598 107 Legs . | . . . . Wheels . | . . . . Hover . | . . . . Flight . | . . . . Fastest Speed 50 | 50 160 160 240 Average Speed 187 | 134 160 232 249 Slowest Speed 450 | 160 240 320 450 Overloaded Moves . | . . . . Propulsion Burnouts . | . . . . Robots Hopped . | . . . . Cave-ins Triggered . | . . . . Exploration Rate (%) 43 | 5 95 58 14 Regions Visited 3 Branch Regions . Pre-discovered Areas . | . . . . Known Exits Taken . | . . . . Unknown Exits Taken 3 | 1 1 1 . Scrap Searched . | . . . . Spaces Dug . | . . . . Terrain Destroyed 58 | . 44 14 . Melee . | . . . . Projectile . | . . . . AOE 58 | . 44 14 . Terrain Rammed . | . . . . Walls Destroyed . | . . . . Machines Disabled . | . . . . Actions | -11 -10 -9 -8 --------- Run | Yrd Mat Mat Mat Total 2512 | 61 1426 790 235 Wait 61 | . 11 10 40 Move 1875 | 47 1122 597 109 Hop . | . . . . Pick Up 95 | 8 41 38 8 Fast Attach . | . . . . Attach 41 | 6 10 14 11 Detach 1 | . 1 . . Swap 10 | . 5 4 1 Drop 41 | . 22 16 3 Fire 374 | . 212 110 52 Melee 1 | . . 1 . Ram 10 | . . . 10 Kick . | . . . . Crush 3 | . 2 . 1 Escape Stasis . | . . . . Rewire . | . . . . Trap . | . . . . Miscellaneous . | . . . . Route ------- -11/Scrapyard -10/Materials (discovered 5 exits: *Mat x3 / [*Min] / [*Sub]) -9/Materials (discovered 2 exits: [*Mat] / [*Min]) -8/Materials History --------- Turn | Location | Event 6 | -11/Scrapyard | Discovered new exit (range 15) 79 | -11/Scrapyard | Entered Materials 318 | -10/Materials | Build established: Mutant 388 | -10/Materials | Discovered new exit (range 11) 454 | -10/Materials | Discovered new exit (range 12) 1100 | -10/Materials | Discovered new exit (range 11) 1189 | -10/Materials | Discovered new exit (range 15) 2169 | -10/Materials | Discovered new exit (range 7) 2561 | -10/Materials | Entered another Materials area 2561 | -9/Materials | Evolved 2 slots: Propulsion x1, Utility x1 3027 | -9/Materials | Discovered new exit (range 12) 3210 | -9/Materials | Lost 4 parts (1p1n2w) 3747 | -9/Materials | Build established: Scavenger-Mutant 4286 | -9/Materials | Discovered new exit (range 5) 4342 | -9/Materials | Entered another Materials area 4342 | -8/Materials | Evolved 2 slots: Utility x2 4826 | -8/Materials | Core integrity fell below 50% 4842 | -8/Materials | Lost 11 parts (1p3n2u5w) 4868 | -8/Materials | Core integrity fell below 20% 4891 | -8/Materials | Destroyed by G-47 Trooper with Particle Gun Last Messages --------------- 04848_ Slammed into G-47 Trooper. 04853_ Critical hit (Burn: +37). 04853_ M-13 Machinist repairs G-47 Trooper. 04859_ Critical hit (Burn: +37). 04861_ G-47 Trooper misfires. 04862_ Slammed into G-47 Trooper. 04862_ U-05 Engineer builds a Door. 04864_ K-01 Serf cleans the Atomic Centrifuge. 04866_ R-06 Scavenger collects Lgt. Ion Engine. 04867_ K-01 Serf cleans the Atomic Centrifuge. 04870_ U-05 Engineer builds a Door. 04872_ K-01 Serf cleans the Atomic Centrifuge. 04873_ G-47 Trooper IFF system glitched. 04873_ R-06 Scavenger collects Particle Gun. 04875_ Slammed into G-47 Trooper. 04877_ R-06 Scavenger collects Imp. Heat Sink. 04881_ R-06 Scavenger collects Beam Rifle. 04886_ U-05 Engineer builds a Door. 04889_ R-06 Scavenger collects Sml. Storage Unit. 04889_ Slammed into G-47 Trooper. Map ----- +----------------------------------------------------+ | ?????????????????????????????????????????????????? | | ?????????????????????????????????????????????????? | | ?????????????????????????????????????????????????? | | ?????????????????????????????????????????????????? | | ?????????????????????????????????????????????????? | | ?????????????????????????????????????????????????? | | ????????????????????????? ??????????????????????? | | ????????????????????????? ??????????????????????? | | ????????????????????????? ??????????????????????? | | ????????????????????????? ??????????????????????? | | ????????????????????????#+#??????????????????????? | | ????????????????????????# #??????????????????????? | | ????????????????????????# #??????????????????????? | | ???????????????????????## #############+###??????? | | ???????????????????????# ???????? | | ???????????????????????# ???????? | | ???????????????????????# % ???????? | | ???????????????????????# ########### #???????? | | ???????????????????????# #?????????# #???????? | | ???????????????????????#r #?????????# #??#????? | | ???????????????????????# #?????????# #? ????? | | ????????????#??????????# #??######## #? ?? ?? | | ????????????? ????????#% #??# """ # # ?""" ?? | | ??????????????? ?????## ##?# """ # # """ ?? | | ??????? #####+#####| r #?# """ + + """ ?? | | ?????? + m %%@ ### # # #? | | ????????????# a % %g u + # #??###### | | ????????????# % * ### # #### | | ????????? #####+### % #?######## "" | | ??????? ???????????###+###????????# T | | ?????????????????????????????????????# | | ???????????????????????????????????###+##+### | | ???????????????????????????????????# ##% # | | ???????????????????????????????????# ##[ # | | ???????????????????????????????????# ## # | | ???????????????????????????????????# ## # | | ???????????????????????????????????# ## ! # | | ???????????????????????????????????# ##= # | | ???????????????????????????????????# ## # | | ???????????????????????????????????# ## | | ???????????????????????????????????# ## | | ???????????????????????????????????########### | | ?????????????????????????????????????????######+## | | ?????????????????????????????????????????# [ | | ?????????????????????????????????????????#" | | ?????????????????????????????????????????#T !! " | | ?????????????????????????????????????????#" !] " | | ?????????????????????????????????????????# !] " | | ?????????????????????????????????????????# | | ?????????????????????????????????????????# | +----------------------------------------------------+ Best States ------------- Heat Dissipation 31 Energy Generation 12 Energy Capacity 265 Matter Stores 300 Matter Capacity 300 Sight Range 16 Robot Scan Range 14 Terrain Scan Density 10 Additional Mass Support 6 Armor Coverage 300 Propulsion Shielding 33 Evasion (%) 50 Targeting Accuracy 5 Recoil Reduction 3 Offensive Hacking 10 Item Schematics ----------------- None Robot Schematics ------------------ None Fabricated ------------ Nothing Alien Tech Used ----------------- None Achievements -------------- Hey, That's Mine! Challenges ------------ None Game ------ Seed CatalystPowerSaw Manual? 0 Play Time 00:36:33 Cumulative 10.0 hours Start 2024.04.04 @ 10:29:53 End 2024.04.04 @ 11:06:10 Sessions 1 Manual Loads 0 Difficulty Rogue Special Mode None Game No. 14 Rogue 14 Adventurer 0 Explorer 0 Win Type - Total 0 Types 0/0/0/0/0/0/0/0/0 Lore% 16 Gallery% 14 Achievement% 12 Wizard Run 0 Options --------- Layout 0 ASCII 0 Keyboard 0 Movement Numpad Keybinds 0 Fullscreen 1 Font 18/SmallcapsGlow Map View 76x50 Zoom Use 0% Tactical HUD 1 Map Filters NONE Filters NONE Steam 1 RUN: 7ac44a61-030b-4b03-9e4d-a698ec28b561